fUST/lending_fUST_20250106
["ID","MTS","AMOUNT","RATE_DAILY","PERIOD"]
[347819175,1736130646907,-500.0,0.00020863,3]
[347819176,1736130646916,-500.0,0.00020863,3]
[347819177,1736130646926,-500.0,0.00020863,3]
[347819178,1736130646935,-500.0,0.00020863,3]
[347819179,1736130646945,-500.0,0.00020863,3]
[347819180,1736130646955,-500.0,0.00020863,3]
[347819181,1736130646964,-500.0,0.00020863,3]
[347819182,1736130646974,-500.0,0.00020863,3]
[347819183,1736130646984,-500.0,0.00020863,3]
[347819184,1736130646997,-615.59255985,0.00020863,3]
[347819185,1736130647007,-500.0,0.00020863,3]
[347819186,1736130647016,-500.0,0.00020863,3]
[347819187,1736130647026,-500.0,0.00020863,3]
[347819188,1736130647035,-500.0,0.00020863,3]
[347819189,1736130647045,-500.0,0.00020863,3]
[347819190,1736130647054,-500.0,0.00020863,3]
[347819191,1736130647064,-500.0,0.00020863,3]
[347819192,1736130647073,-500.0,0.00020863,3]
[347819193,1736130647082,-500.0,0.00020863,3]
[347819194,1736130647091,-500.0,0.00020863,3]
[347819195,1736130647100,-500.0,0.00020863,3]
[347819196,1736130647109,-500.0,0.00020863,3]
[347819197,1736130647119,-500.0,0.00020863,3]
[347819198,1736130647128,-500.0,0.00020863,3]
[347819199,1736130647137,-500.0,0.00020863,3]
[347819200,1736130647146,-500.0,0.00020863,3]
[347819201,1736130647155,-500.0,0.00020863,3]
[347819202,1736130647166,-500.0,0.00020863,3]
[347819203,1736130647175,-12322.45,0.00020863,3]
[347819204,1736130647185,-500.0,0.00020863,3]
[347819205,1736130647194,-500.0,0.00020863,3]
[347819206,1736130647204,-500.0,0.00020863,3]
[347819207,1736130647214,-500.0,0.00020863,3]
[347819208,1736130647223,-500.0,0.00020863,3]
[347819209,1736130647232,-500.0,0.00020863,3]
[347819210,1736130647245,-500.0,0.00020863,3]
[347819211,1736130647255,-500.0,0.00020863,3]
[347819212,1736130647264,-500.0,0.00020863,3]
[347819213,1736130647273,-1298.66794036,0.000209,2]
[347819214,1736130647283,-1266.04547611,0.00020949,2]
[347819215,1736130647292,-180.712,0.00020958,2]
[347819216,1736130647301,-500.83402331,0.00020973,2]
[347819217,1736130647310,-500.0,0.00020995,3]
[347819218,1736130647319,-500.0,0.00020996,3]
[347819219,1736130647328,-500.0,0.00020996,3]
[347819220,1736130647337,-500.0,0.00020996,3]
[347819221,1736130647347,-203.39464866,0.00020996,3]
[347819222,1736130647357,-500.0,0.00020996,3]
[347819223,1736130647366,-508.68128467,0.00020996,3]
[347819224,1736130647375,-500.0,0.00020996,3]
[347819225,1736130647385,-524.59,0.00020996,3]
[347819226,1736130647394,-366.70318335,0.00020996,3]
[347819227,1736130647403,-508.33083847,0.00020996,5]
[347819228,1736130647413,-500.0,0.00020996,3]
[347819229,1736130647422,-500.0,0.00020996,3]
[347819230,1736130647436,-500.0,0.00020996,3]
[347819231,1736130647446,-611.26107572,0.00020996,3]
[347819232,1736130647455,-1633.85,0.00020996,3]
[347819233,1736130647464,-500.0,0.00020996,3]
[347819234,1736130647474,-500.0,0.00020996,3]
[347819235,1736130647485,-500.0,0.00020996,3]
[347819236,1736130647498,-500.0,0.00020996,3]
[347819237,1736130647508,-500.0,0.00020996,3]
[347819238,1736130647520,-1313.68,0.00020996,3]
[347819239,1736130647530,-500.0,0.00020997,3]
[347819240,1736130647539,-500.0,0.00020997,3]
[347819241,1736130647548,-500.0,0.00020997,3]
[347819242,1736130647557,-500.0,0.00020997,3]
[347819243,1736130647567,-500.0,0.00020997,3]
[347819244,1736130647576,-500.0,0.00020997,3]
[347819245,1736130647585,-411.29658739,0.00020997,3]
[347819246,1736130647595,-500.0,0.00020997,3]
[347819247,1736130647604,-500.0,0.00020998,3]
[347819248,1736130647613,-500.0,0.00020998,3]
[347819249,1736130647622,-500.0,0.00020998,3]
[347819250,1736130647632,-201.79184553,0.00020999,2]
[347819251,1736130647642,-500.0,0.00020999,3]
[347819252,1736130647650,-500.0,0.00020999,3]
[347819253,1736130647659,-500.0,0.00020999,3]
[347819254,1736130647669,-500.0,0.00020999,3]
[347819255,1736130647678,-500.0,0.00020999,3]
[347819256,1736130647688,-500.0,0.00020999,3]
[347819257,1736130647697,-500.0,0.00020999,3]
[347819258,1736130647706,-500.0,0.00020999,3]
[347819259,1736130647715,-500.0,0.00020999,3]
[347819260,1736130647725,-189.7595047,0.00020999,2]
[347819261,1736130647735,-574.60377236,0.00020999,2]
[347819262,1736130647746,-2407.35825756,0.00021,2]
[347819263,1736130647755,-195.0,0.00021,3]
[347819264,1736130647764,-195.0,0.00021,4]
[347819265,1736130647773,-204.77918642,0.00021,2]
[347819266,1736130647783,-5164.75756255,0.00021,2]
[347819267,1736130647793,-1298.66794017,0.00021003,2]
[347819268,1736130647802,-500.0,0.00021029,3]
[347819269,1736130647811,-500.0,0.0002103,3]
[347819270,1736130647821,-500.0,0.0002103,3]
[347819271,1736130647830,-3890.51,0.00021031,3]
[347819272,1736130647839,-500.0,0.00021031,3]
[347819273,1736130647849,-500.0,0.00021031,3]
[347819274,1736130647858,-500.0,0.00021031,3]
[347819275,1736130647868,-500.0,0.00021031,3]
[347819276,1736130647877,-502.48930676,0.00021031,3]
[347819277,1736130647972,-500.0,0.00021032,3]
[347819278,1736130647982,-2782.5,0.00021033,3]
[347819279,1736130647994,-500.0,0.00021035,3]
[347819280,1736130648004,-1112.26042064,0.0002107,2]
[347819281,1736130648013,-650.17513644,0.00021103,2]
[347819282,1736130648023,-1298.66794017,0.00021107,2]
[347819283,1736130648033,-461.284707,0.00021135,3]
[347819284,1736130648042,-860.66,0.00021135,3]
[347819285,1736130648052,-500.0,0.00021135,3]
[347819286,1736130648062,-500.0,0.00021135,3]
[347819287,1736130648072,-500.0,0.00021135,3]
[347819288,1736130648081,-4473.9,0.00021136,3]
[347819289,1736130648090,-1359.1,0.00021136,3]
[347819290,1736130648100,-778.49,0.00021136,3]
[347819291,1736130648111,-500.0,0.00021136,3]
[347819292,1736130648121,-500.0,0.00021136,3]
[347819293,1736130648130,-500.0,0.00021136,3]
[347819294,1736130648140,-500.0,0.00021136,3]
[347819295,1736130648150,-877.45,0.00021136,3]
[347819296,1736130648159,-500.0,0.00021136,3]
[347819297,1736130648169,-500.0,0.00021136,3]
[347819298,1736130648178,-500.0,0.00021136,3]
[347819299,1736130648187,-500.0,0.00021136,3]
[347819300,1736130648196,-500.0,0.00021136,3]
[347819301,1736130648205,-500.0,0.00021137,3]
[347819302,1736130648214,-500.0,0.00021137,3]
[347819303,1736130648224,-500.0,0.00021137,3]
[347819304,1736130648233,-500.0,0.00021137,3]
[347819305,1736130648244,-500.0,0.00021137,3]
[347819306,1736130648253,-500.0,0.00021137,3]
[347819307,1736130648262,-500.0,0.00021137,3]
[347819308,1736130648271,-500.0,0.00021137,3]
[347819309,1736130648280,-500.0,0.00021137,3]
[347819310,1736130648290,-500.0,0.00021137,3]
[347819311,1736130648299,-500.0,0.00021137,3]
[347819312,1736130648308,-500.0,0.00021137,3]
[347819313,1736130648317,-500.0,0.00021137,3]
[347819314,1736130648327,-500.0,0.00021137,3]
[347819315,1736130648336,-395.0687868,0.00021137,3]
[347819316,1736130648345,-500.0,0.00021137,3]
[347819317,1736130648354,-500.0,0.00021137,3]
[347819318,1736130648363,-500.0,0.00021137,3]
[347819319,1736130648372,-500.0,0.00021137,3]
[347819320,1736130648382,-500.0,0.00021137,3]
[347819321,1736130648391,-500.0,0.00021137,3]
[347819322,1736130648400,-500.0,0.00021137,3]
[347819323,1736130648410,-500.0,0.00021137,3]
[347819324,1736130648419,-500.0,0.00021137,3]
[347819325,1736130648428,-500.0,0.00021137,3]
[347819326,1736130648438,-500.0,0.00021137,3]
[347819327,1736130648451,-500.0,0.00021137,3]
[347819328,1736130648460,-500.0,0.00021137,3]
[347819329,1736130648470,-500.0,0.00021137,3]
[347819330,1736130648479,-500.0,0.00021137,3]
[347819331,1736130648489,-12322.45,0.00021137,3]
[347819332,1736130648502,-500.0,0.00021137,3]
[347819333,1736130648511,-500.0,0.00021137,3]
[347819334,1736130648520,-500.0,0.00021137,3]
[347819335,1736130648529,-500.0,0.00021137,3]
[347819336,1736130648539,-500.0,0.00021137,3]
[347819337,1736130648548,-500.0,0.00021137,3]
[347819338,1736130648557,-151.0,0.00021137,2]
[347819339,1736130648567,-500.0,0.00021137,3]
[347819340,1736130648576,-500.0,0.00021137,3]
[347819341,1736130648585,-500.0,0.00021137,3]
[347819342,1736130648595,-195.49994359,0.00021183,2]
[347819343,1736130648604,-1298.66794017,0.0002121,2]
[347819344,1736130648614,-500.0,0.00021269,3]
[347819345,1736130648623,-500.0,0.0002127,3]
[347819346,1736130648632,-500.0,0.0002127,3]
[347819347,1736130648642,-500.0,0.0002127,3]
[347819348,1736130648651,-500.0,0.0002127,3]
[347819349,1736130648661,-500.0,0.0002127,3]
[347819350,1736130648670,-524.59,0.0002127,3]
[347819351,1736130648679,-500.0,0.0002127,3]
[347819352,1736130648688,-500.0,0.0002127,3]
[347819353,1736130648698,-500.0,0.0002127,3]
[347819354,1736130648707,-152.849392,0.0002127,2]
[347819355,1736130648717,-160.320342,0.0002127,2]
[347819356,1736130648726,-1633.85,0.0002127,3]
[347819357,1736130648735,-500.0,0.0002127,3]
[347819358,1736130648748,-278.39489244,0.0002127,3]
[347819359,1736130648757,-500.0,0.0002127,3]
[347819360,1736130648767,-500.0,0.0002127,3]
[347819361,1736130648777,-500.0,0.0002127,3]
[347819362,1736130648787,-1313.68,0.0002127,3]
[347819363,1736130648797,-180.365055,0.0002127,2]
[347819364,1736130648808,-180.365055,0.0002127,2]
[347819365,1736130648817,-500.0,0.00021271,3]
[347819366,1736130648827,-500.0,0.00021271,3]
[347819367,1736130648837,-500.0,0.00021271,3]
[347819368,1736130648846,-500.0,0.00021271,3]
[347819369,1736130648856,-151.0,0.00021271,2]
[347819370,1736130648866,-500.0,0.00021271,3]
[347819371,1736130648876,-151.0,0.00021271,2]
[347819372,1736130648886,-500.0,0.00021271,3]
[347819373,1736130648895,-163.020988,0.00021271,2]
[347819374,1736130648905,-195.37172729,0.00021272,3]
[347819375,1736130648915,-500.0,0.00021272,3]
[347819376,1736130648924,-500.0,0.00021272,3]
[347819377,1736130648933,-151.0,0.00021304,2]
[347819378,1736130648943,-500.0,0.00021304,3]
[347819379,1736130648952,-506.20738166,0.00021304,3]
[347819380,1736130648962,-500.0,0.00021304,3]
[347819381,1736130648971,-3890.51,0.00021305,3]
[347819382,1736130648980,-500.0,0.00021305,3]
[347819383,1736130648990,-156.93981835,0.00021305,3]
[347819384,1736130649002,-500.0,0.00021305,3]
[347819385,1736130649011,-500.0,0.00021305,3]
[347819386,1736130649021,-151.0,0.00021306,2]
[347819387,1736130649031,-2782.5,0.00021307,3]
[347819388,1736130649040,-151.0,0.00021307,2]
[347819389,1736130649056,-153.261621,0.00021307,2]
[347819390,1736130649066,-151.0,0.00021307,2]
[347819391,1736130649075,-353.245176,0.00021307,2]
[347819392,1736130649084,-353.245176,0.00021307,2]
[347819393,1736130649093,-152.524221,0.00021307,2]
[347819394,1736130649103,-151.0,0.00021307,2]
[347819395,1736130649112,-773.37352745,0.00021313,2]
[347819396,1736130649122,-6359.93488792,0.00021313,2]
[347819397,1736130649131,-1298.66794017,0.00021314,2]
[347819398,1736130649140,-501.82477896,0.00021358,2]
[347819399,1736130649149,-1112.26042064,0.00021378,2]
[347819400,1736130649159,-860.66,0.00021409,3]
[347819401,1736130649168,-500.0,0.00021409,3]
[347819402,1736130649176,-500.0,0.00021409,3]
[347819403,1736130649186,-500.0,0.00021409,3]
[347819404,1736130649195,-4473.9,0.0002141,3]
[347819405,1736130649204,-1359.1,0.0002141,3]
[347819406,1736130649213,-778.49,0.0002141,3]
[347819407,1736130649223,-500.0,0.0002141,3]
[347819408,1736130649232,-500.0,0.0002141,3]
[347819409,1736130649241,-511.32223319,0.0002141,3]
[347819410,1736130649252,-500.0,0.0002141,3]
[347819411,1736130649262,-877.45,0.0002141,3]
[347819412,1736130649271,-500.0,0.0002141,3]
[347819413,1736130649280,-500.0,0.0002141,3]
[347819414,1736130649290,-500.0,0.0002141,3]
[347819415,1736130649299,-500.0,0.0002141,3]
[347819416,1736130649308,-500.0,0.0002141,3]
[347819417,1736130649318,-500.0,0.00021411,3]
[347819418,1736130649327,-500.0,0.00021411,3]
[347819419,1736130649336,-500.0,0.00021411,3]
[347819420,1736130649346,-500.0,0.00021411,3]
[347819421,1736130649355,-500.0,0.00021411,3]
[347819422,1736130649364,-500.0,0.00021411,3]
[347819423,1736130649373,-500.0,0.00021411,3]
[347819424,1736130649383,-500.0,0.00021411,3]
[347819425,1736130649393,-500.0,0.00021411,3]
[347819426,1736130649403,-467.66372433,0.00021411,3]
[347819427,1736130649412,-500.0,0.00021411,3]
[347819428,1736130649422,-500.0,0.00021411,3]
[347819429,1736130649435,-500.0,0.00021411,3]
[347819430,1736130649445,-500.0,0.00021411,3]
[347819431,1736130649455,-500.0,0.00021411,3]
[347819432,1736130649465,-500.0,0.00021411,3]
[347819433,1736130649475,-500.0,0.00021411,3]
[347819434,1736130649484,-500.0,0.00021411,3]
[347819435,1736130649497,-500.0,0.00021411,3]
[347819436,1736130649507,-500.0,0.00021411,3]
[347819437,1736130649518,-500.0,0.00021411,3]
[347819438,1736130649527,-500.0,0.00021411,3]
[347819439,1736130649537,-500.0,0.00021411,3]
[347819440,1736130649546,-500.0,0.00021411,3]
[347819441,1736130649556,-500.0,0.00021411,3]
[347819442,1736130649565,-500.0,0.00021411,3]
[347819443,1736130649575,-500.0,0.00021411,3]
[347819444,1736130649585,-500.0,0.00021411,3]
[347819445,1736130649594,-500.0,0.00021411,3]
[347819446,1736130649604,-12322.45,0.00021411,3]
[347819447,1736130649614,-497.82554026,0.00021411,3]
[347819448,1736130649623,-500.0,0.00021411,3]
[347819449,1736130649633,-500.0,0.00021411,3]
[347819450,1736130649643,-500.0,0.00021411,3]
[347819451,1736130649652,-500.0,0.00021411,3]
[347819452,1736130649661,-500.0,0.00021411,3]
[347819453,1736130649671,-500.0,0.00021411,3]
[347819454,1736130649679,-500.0,0.00021411,3]
[347819455,1736130649689,-152.79898624,0.00021411,3]
[347819456,1736130649698,-180.365055,0.00021411,2]
[347819457,1736130649708,-180.365055,0.00021411,2]
[347819458,1736130649717,-1298.66794017,0.00021417,2]
[347819459,1736130649727,-508.94692675,0.00021447,2]
[347819460,1736130649735,-686.3688968,0.000215,2]
[347819461,1736130649747,-1298.66794017,0.00021521,2]
[347819462,1736130649757,-195.49994359,0.0002153,2]
[347819463,1736130649766,-500.0,0.00021544,3]
[347819464,1736130649776,-500.0,0.00021544,3]
[347819465,1736130649785,-500.0,0.00021544,3]
[347819466,1736130649795,-500.0,0.00021544,3]
[347819467,1736130649804,-500.0,0.00021544,3]
[347819468,1736130649814,-524.59,0.00021544,3]
[347819469,1736130649823,-179.27040276,0.00021544,3]
[347819470,1736130649833,-500.0,0.00021544,3]
[347819471,1736130649842,-151.0,0.00021544,2]
[347819472,1736130649851,-500.0,0.00021544,3]
[347819473,1736130649861,-151.0,0.00021544,2]
[347819474,1736130649870,-1633.85,0.00021544,3]
[347819475,1736130649879,-500.0,0.00021544,3]
[347819476,1736130649889,-632.59152035,0.00021544,3]
[347819477,1736130649899,-500.0,0.00021544,3]
[347819478,1736130649908,-1313.68,0.00021544,3]
[347819479,1736130649917,-151.0,0.00021545,2]
[347819480,1736130649927,-156.975903,0.00021545,2]
[347819481,1736130649936,-500.0,0.00021545,3]
[347819482,1736130649945,-500.0,0.00021545,3]
[347819483,1736130649954,-500.0,0.00021545,3]
[347819484,1736130649963,-166.048689,0.00021545,2]
[347819485,1736130649973,-151.0,0.00021545,2]
[347819486,1736130649982,-500.0,0.00021545,3]
[347819487,1736130649991,-365.7040448,0.00021545,3]
[347819488,1736130650001,-500.0,0.00021545,3]
[347819489,1736130650010,-260.85583366,0.00021545,3]
[347819490,1736130650019,-180.365055,0.00021545,2]
[347819491,1736130650029,-180.365055,0.00021545,2]
[347819492,1736130650114,-151.0,0.00021546,2]
[347819493,1736130650124,-151.0,0.00021546,2]
[347819494,1736130650133,-151.0,0.00021546,2]
[347819495,1736130650143,-152.020225,0.00021546,2]
[347819496,1736130650152,-353.245176,0.00021546,2]
[347819497,1736130650161,-353.245176,0.00021546,2]
[347819498,1736130650171,-159.095331,0.00021546,2]
[347819499,1736130650180,-500.0,0.00021546,3]
[347819500,1736130650189,-151.0,0.00021555,2]
[347819501,1736130650198,-151.0,0.00021555,2]
[347819502,1736130650208,-512.80873587,0.00021573,2]
[347819503,1736130650217,-530.47837236,0.00021573,2]
[347819504,1736130650226,-500.0,0.00021573,2]
[347819505,1736130650236,-151.0,0.00021578,2]
[347819506,1736130650246,-151.0,0.00021578,2]
[347819507,1736130650256,-151.0,0.00021578,2]
[347819508,1736130650265,-152.999238,0.00021578,2]
[347819509,1736130650274,-500.0,0.00021578,3]
[347819510,1736130650283,-3890.51,0.00021579,3]
[347819511,1736130650292,-500.0,0.00021579,3]
[347819512,1736130650301,-500.0,0.00021579,3]
[347819513,1736130650311,-151.0,0.00021581,2]
[347819514,1736130650320,-151.0,0.00021581,2]
[347819515,1736130650329,-2782.5,0.00021581,3]
[347819516,1736130650338,-151.0,0.00021581,2]
[347819517,1736130650348,-2016.0,0.000216,4]
[347819518,1736130650357,-1298.66794017,0.00021624,2]
[347819519,1736130650366,-860.66,0.00021683,3]
[347819520,1736130650375,-500.0,0.00021683,3]
[347819521,1736130650384,-500.0,0.00021683,3]
[347819522,1736130650394,-500.0,0.00021683,3]
[347819523,1736130650403,-4473.9,0.00021684,3]
[347819524,1736130650413,-1359.1,0.00021684,3]
[347819525,1736130650422,-778.49,0.00021684,3]
[347819526,1736130650433,-500.0,0.00021684,3]
[347819527,1736130650447,-500.0,0.00021684,3]
[347819528,1736130650456,-500.0,0.00021684,3]
[347819529,1736130650465,-877.45,0.00021684,3]
[347819530,1736130650474,-500.0,0.00021684,3]
[347819531,1736130650484,-500.0,0.00021684,3]
[347819532,1736130650496,-500.0,0.00021684,3]
[347819533,1736130650506,-500.0,0.00021684,3]
[347819534,1736130650515,-500.0,0.00021684,3]
[347819535,1736130650524,-1112.26042064,0.00021685,2]
[347819536,1736130650534,-500.0,0.00021685,3]
[347819537,1736130650543,-500.0,0.00021685,3]
[347819538,1736130650552,-500.0,0.00021685,3]
[347819539,1736130650562,-500.0,0.00021685,3]
[347819540,1736130650571,-500.0,0.00021685,3]
[347819541,1736130650580,-500.0,0.00021685,3]
[347819542,1736130650589,-198.93343683,0.00021685,3]
[347819543,1736130650599,-500.0,0.00021685,3]
[347819544,1736130650609,-500.0,0.00021685,3]
[347819545,1736130650618,-500.0,0.00021685,3]
[347819546,1736130650627,-500.0,0.00021685,3]
[347819547,1736130650637,-500.0,0.00021685,3]
[347819548,1736130650646,-614.23285144,0.00021685,3]
[347819549,1736130650655,-500.0,0.00021685,3]
[347819550,1736130650664,-513.60002976,0.00021685,3]
[347819551,1736130650673,-500.0,0.00021685,3]
[347819552,1736130650683,-500.0,0.00021685,3]
[347819553,1736130650692,-500.0,0.00021685,3]
[347819554,1736130650702,-500.0,0.00021685,3]
[347819555,1736130650711,-500.0,0.00021685,3]
[347819556,1736130650720,-500.0,0.00021685,3]
[347819557,1736130650729,-500.0,0.00021685,3]
[347819558,1736130650739,-500.0,0.00021685,3]
[347819559,1736130650750,-512.39505322,0.00021685,3]
[347819560,1736130650759,-500.0,0.00021685,3]
[347819561,1736130650768,-500.0,0.00021685,3]
[347819562,1736130650777,-500.0,0.00021685,3]
[347819563,1736130650786,-500.0,0.00021685,3]
[347819564,1736130650797,-12322.45,0.00021685,3]
[347819565,1736130650806,-500.0,0.00021685,3]
[347819566,1736130650816,-509.79228202,0.00021685,3]
[347819567,1736130650825,-507.48236088,0.00021685,3]
[347819568,1736130650834,-500.0,0.00021685,3]
[347819569,1736130650844,-500.0,0.00021685,3]
[347819570,1736130650853,-500.0,0.00021685,3]
[347819571,1736130650862,-500.0,0.00021685,3]
[347819572,1736130650872,-180.365055,0.00021685,2]
[347819573,1736130650881,-180.365055,0.00021685,2]
[347819574,1736130650894,-519.92108414,0.00021719,3]
[347819575,1736130650903,-1298.66794017,0.00021728,2]
[347819576,1736130650912,-3000.0,0.00021757,2]
[347819577,1736130650922,-353.245176,0.00021757,2]
[347819578,1736130650931,-353.245176,0.00021757,2]
[347819579,1736130650940,-420.0,0.00021777,2]
[347819580,1736130650949,-1004.92,0.000218,3]
[347819581,1736130650958,-500.0,0.00021818,3]
[347819582,1736130650967,-500.0,0.00021818,3]
[347819583,1736130650976,-500.0,0.00021818,3]
[347819584,1736130650986,-500.0,0.00021818,3]
[347819585,1736130650997,-500.0,0.00021818,3]
[347819586,1736130651006,-524.59,0.00021818,3]
[347819587,1736130651016,-500.0,0.00021818,3]
[347819588,1736130651026,-151.0,0.00021818,2]
[347819589,1736130651035,-500.0,0.00021818,3]
[347819590,1736130651044,-151.0,0.00021818,2]
[347819591,1736130651055,-1633.85,0.00021818,3]
[347819592,1736130651064,-500.0,0.00021818,3]
[347819593,1736130651074,-500.0,0.00021818,3]
[347819594,1736130651084,-1313.68,0.00021818,3]
[347819595,1736130651093,-500.0,0.00021819,3]
[347819596,1736130651103,-500.0,0.00021819,3]
[347819597,1736130651112,-500.0,0.00021819,3]
[347819598,1736130651121,-246.424642,0.00021819,2]
[347819599,1736130651130,-500.0,0.00021819,3]
[347819600,1736130651139,-500.0,0.00021819,3]
[347819601,1736130651148,-151.0,0.0002182,2]
[347819602,1736130651157,-151.0,0.0002182,2]
[347819603,1736130651166,-500.0,0.0002182,3]
[347819604,1736130651175,-151.646864,0.00021821,2]
[347819605,1736130651184,-154.43886,0.00021821,2]
[347819606,1736130651194,-151.0,0.00021821,2]
[347819607,1736130651203,-153.663927,0.00021821,2]
[347819608,1736130651211,-353.245176,0.00021821,2]
[347819609,1736130651221,-353.245176,0.00021821,2]
[347819610,1736130651231,-466.282,0.0002183,2]
[347819611,1736130651240,-1298.66794017,0.00021831,2]
[347819612,1736130651251,-500.0,0.00021852,3]
[347819613,1736130651261,-3890.51,0.00021853,3]
[347819614,1736130651270,-500.0,0.00021853,3]
[347819615,1736130651279,-500.0,0.00021853,3]
[347819616,1736130651289,-180.365055,0.00021853,2]
[347819617,1736130651298,-180.365055,0.00021853,2]
[347819618,1736130651307,-2782.5,0.00021855,3]
[347819619,1736130651316,-151.0,0.00021855,2]
[347819620,1736130651325,-182.181058,0.00021855,2]
[347819621,1736130651334,-151.0,0.00021857,2]
[347819622,1736130651344,-500.0,0.00021873,2]
[347819623,1736130651353,-1298.66794017,0.00021934,2]
[347819624,1736130651363,-860.66,0.00021957,3]
[347819625,1736130651371,-500.0,0.00021957,3]
[347819626,1736130651381,-500.0,0.00021957,3]
[347819627,1736130651390,-500.0,0.00021957,3]
[347819628,1736130651400,-4473.9,0.00021958,3]
[347819629,1736130651409,-1359.1,0.00021958,3]
[347819630,1736130651419,-778.49,0.00021958,3]
[347819631,1736130651430,-500.0,0.00021958,3]
[347819632,1736130651440,-500.0,0.00021958,3]
[347819633,1736130651450,-500.0,0.00021958,3]
[347819634,1736130651459,-877.45,0.00021958,3]
[347819635,1736130651468,-500.0,0.00021958,3]
[347819636,1736130651478,-500.0,0.00021958,3]
[347819637,1736130651487,-500.0,0.00021958,3]
[347819638,1736130651498,-500.0,0.00021958,3]
[347819639,1736130651507,-500.0,0.00021958,3]
[347819640,1736130651518,-511.32654312,0.00021959,3]
[347819641,1736130651528,-500.0,0.00021959,3]
[347819642,1736130651537,-500.0,0.00021959,3]
[347819643,1736130651546,-500.0,0.00021959,3]
[347819644,1736130651555,-500.0,0.00021959,3]
[347819645,1736130651564,-375.07542426,0.00021959,3]
[347819646,1736130651574,-636.09639671,0.00021959,3]
[347819647,1736130651583,-500.0,0.00021959,3]
[347819648,1736130651592,-500.0,0.00021959,3]
[347819649,1736130651601,-521.89526891,0.00021959,3]
[347819650,1736130651611,-500.0,0.00021959,3]
[347819651,1736130651620,-500.0,0.00021959,3]
[347819652,1736130651629,-500.0,0.00021959,3]
[347819653,1736130651638,-500.0,0.00021959,3]
[347819654,1736130651647,-239.75634983,0.00021959,3]
[347819655,1736130651657,-500.0,0.00021959,3]
[347819656,1736130651666,-585.85919018,0.00021959,3]
[347819657,1736130651675,-400.41524094,0.00021959,3]
[347819658,1736130651684,-500.0,0.00021959,3]
[347819659,1736130651693,-500.0,0.00021959,3]
[347819660,1736130651703,-500.0,0.00021959,3]
[347819661,1736130651713,-500.0,0.00021959,3]
[347819662,1736130651722,-500.0,0.00021959,3]
[347819663,1736130651731,-436.92162774,0.00021959,3]
[347819664,1736130651740,-12322.45,0.00021959,3]
[347819665,1736130651752,-500.0,0.00021959,3]
[347819666,1736130651762,-500.0,0.00021959,3]
[347819667,1736130651771,-500.0,0.00021959,3]
[347819668,1736130651780,-500.0,0.00021959,3]
[347819669,1736130651790,-500.0,0.00021959,3]
[347819670,1736130651799,-1112.26042064,0.00021992,2]
[347819671,1736130651809,-170.0,0.00022,7]
[347819672,1736130651818,-193.0,0.00022,4]
[347819673,1736130651827,-2001.52,0.00022,3]
[347819674,1736130651836,-1298.66794017,0.00022038,2]